bitfinex-derivatives/quotes_BTCF0:USTF0_20240903
["timestamp","ask_amount","ask_price","bid_price","bid_amount"]
[1725374278813,0.36096994,57983.0,57982.0,0.0014]
[1725374279016,0.54721494,57983.0,57982.0,0.0014]
[1725374279209,1.96645994,57983.0,57982.0,0.0004]
[1725374279415,2.38325994,57983.0,57982.0,0.0004]
[1725374279611,2.89701494,57983.0,57982.0,0.0004]
[1725374279807,2.29701494,57983.0,57982.0,0.0004]
[1725374280012,2.89701494,57983.0,57982.0,0.0004]
[1725374280209,2.89701494,57983.0,57982.0,0.087646]
[1725374280210,1.36281494,57983.0,57982.0,0.087646]
[1725374280421,0.94151494,57983.0,57982.0,0.087646]
[1725374280609,0.54721494,57983.0,57982.0,0.087646]
[1725374280822,0.54721494,57983.0,57982.0,0.088646]
[1725374280823,0.46096994,57983.0,57982.0,0.088646]
[1725374281421,0.10016994,57983.0,57982.0,0.088646]
[1725374281618,0.00016994,57983.0,57982.0,0.087646]
[1725374282722,0.00016994,57983.0,57982.0,0.086646]
[1725374283323,0.08016994,57983.0,57982.0,0.086646]
[1725374283717,0.00016994,57983.0,57982.0,0.086646]
[1725374285517,0.3608,57996.0,57993.0,0.08623]
[1725374285717,0.3608,57996.0,57995.0,0.3004]
[1725374286025,0.3608,57996.0,57995.0,0.386627]
[1725374286526,0.3608,57996.0,57995.0,0.39512642]
[1725374286731,0.3608,57996.0,57995.0,0.0004]
[1725374286732,1.66053,57996.0,57995.0,0.0004]
[1725374286923,1.746755,57996.0,57995.0,0.0004]
[1725374287116,1.146755,57996.0,57995.0,0.0004]
[1725374287514,1.746755,57996.0,57995.0,0.0004]
[1725374288025,1.06053,57996.0,57995.0,0.0004]
[1725374288228,1.06053,57996.0,57995.0,0.0014]
[1725374288425,1.66053,57996.0,57995.0,0.0014]
[1725374288728,0.172466,57991.0,57990.0,0.00025868]
[1725374289036,1.61109353,57991.0,57990.0,0.00025868]
[1725374289223,2.060986,57991.0,57990.0,0.00025868]
[1725374289521,2.147219,57991.0,57990.0,0.00025868]
[1725374290122,0.086255,57976.0,57975.0,0.956655]
[1725374290322,0.086255,57976.0,57971.0,0.086261]
[1725374290323,0.085261,57972.0,57971.0,0.086261]
[1725374290615,0.084661,57972.0,57971.0,0.086261]
[1725374291021,0.084261,57972.0,57971.0,0.086261]
[1725374292932,0.66416001,57976.0,57972.0,0.08626]
[1725374293131,0.086268,57967.0,57966.0,0.00025868]
[1725374293433,0.883736,57967.0,57966.0,0.00025868]
[1725374293621,2.001296,57967.0,57966.0,0.00025868]
[1725374294832,2.02852661,57967.0,57966.0,0.00025868]
[1725374295224,2.11779461,57967.0,57966.0,0.00025868]
[1725374295432,2.11779461,57967.0,57954.0,0.8704]
[1725374295433,0.086286,57955.0,57954.0,0.8704]
[1725374295729,0.086291,57952.0,57951.0,0.086292]
[1725374295933,0.086691,57952.0,57951.0,0.086292]
[1725374296133,0.085691,57952.0,57951.0,0.11369344]
[1725374296334,0.085691,57952.0,57951.0,0.02740144]
[1725374296526,0.0004,57952.0,57951.0,0.086292]
[1725374296830,0.0004,57952.0,57951.0,0.386292]
[1725374297933,0.0004,57952.0,57951.0,0.389292]
[1725374298430,0.0004,57952.0,57951.0,0.388292]
[1725374298632,0.0024,57952.0,57951.0,1.505972]
[1725374299134,0.0004,57952.0,57951.0,0.003]
[1725374299432,0.086691,57952.0,57951.0,0.003]
[1725374299630,0.496691,57952.0,57951.0,0.003]
[1725374299834,0.196691,57952.0,57951.0,0.002]
[1725374300026,0.196691,57952.0,57951.0,0.006]
[1725374300027,0.496691,57952.0,57951.0,0.006]
[1725374301532,0.499691,57952.0,57951.0,0.002]
[1725374301723,0.499691,57952.0,57948.0,0.086296]
[1725374301931,0.0004,57949.0,57948.0,0.086296]
[1725374302130,0.086298,57947.0,57946.0,0.02766283]
[1725374302326,0.516698,57947.0,57946.0,0.02766283]
[1725374303431,0.516298,57947.0,57946.0,0.02766283]
[1725374303632,0.13,57947.0,57946.0,0.11396283]
[1725374303832,0.003,57952.0,57951.0,0.086292]
[1725374304032,0.086295,57949.0,57946.0,0.02766283]
[1725374304339,0.186295,57949.0,57947.0,0.086297]
[1725374304533,0.186295,57949.0,57948.0,0.086297]
[1725374304534,0.1,57949.0,57948.0,0.086297]
[1725374305039,0.086291,57952.0,57950.0,0.086293]
[1725374305336,0.096291,57952.0,57951.0,0.0004]
[1725374305739,0.3608,57955.0,57951.0,0.0004]
[1725374306041,0.3608,57955.0,57954.0,0.0004]
[1725374306042,0.4908,57955.0,57954.0,0.0004]
[1725374306640,0.4908,57955.0,57954.0,0.086688]
[1725374306941,0.3608,57955.0,57954.0,0.086688]
[1725374307133,0.00025868,57957.0,57956.0,0.086285]
[1725374307336,0.00025868,57957.0,57956.0,0.086685]
[1725374307841,0.00025868,57957.0,57956.0,0.39512248]
[1725374308549,0.00025868,57957.0,57956.0,0.42268816]
[1725374308938,0.00025868,57957.0,57956.0,0.11425068]
[1725374309134,0.00025868,57957.0,57956.0,0.02796568]
[1725374309135,0.20654168,57957.0,57956.0,0.02796568]
[1725374309439,0.20654168,57957.0,57956.0,0.02896568]
[1725374310145,0.20854168,57957.0,57956.0,0.02796568]
[1725374310846,0.20854168,57957.0,57956.0,0.11425068]
[1725374311744,0.20954168,57957.0,57956.0,0.11525068]
[1725374311941,0.20954168,57957.0,57956.0,0.11625068]
[1725374312143,0.20654168,57957.0,57956.0,0.11525068]
[1725374312348,0.12325868,57957.0,57956.0,0.11625068]
[1725374312734,0.00325868,57957.0,57956.0,0.11525068]
[1725374312936,0.00325868,57957.0,57956.0,0.51027097]
[1725374313250,0.00325868,57957.0,57956.0,1.71419597]
[1725374313445,0.447059,57973.0,57972.0,0.086261]
[1725374313643,0.086262,57972.0,57969.0,0.086265]
[1725374313844,0.0004,57970.0,57969.0,0.086265]
[1725374314040,0.1304,57970.0,57969.0,0.086265]
[1725374314759,0.0004,57970.0,57969.0,0.086265]
[1725374315146,0.0034,57970.0,57969.0,0.086265]
[1725374315747,0.0004,57970.0,57969.0,0.088265]
[1725374315947,0.0004,57970.0,57969.0,0.11503832]
[1725374316348,0.0004,57970.0,57969.0,0.11303832]
[1725374316349,0.0014,57970.0,57969.0,0.11303832]
[1725374317961,0.0004,57970.0,57969.0,0.11303832]
[1725374318259,0.0004,57970.0,57969.0,0.47883832]
[1725374318655,0.0004,57970.0,57969.0,0.48283832]
[1725374319152,0.0004,57970.0,57969.0,0.47983832]
[1725374319360,0.0004,57970.0,57969.0,0.48883832]
[1725374320259,0.0004,57970.0,57969.0,0.57510332]
[1725374320462,0.0004,57970.0,57969.0,1.44550332]
[1725374320866,0.00025787,57975.0,57974.0,0.472516]
[1725374321072,0.00025787,57975.0,57974.0,1.343316]
[1725374321362,0.3608,57996.0,57995.0,0.086227]
[1725374321562,0.3608,57996.0,57995.0,0.086627]
[1725374321753,0.3608,57996.0,57995.0,0.0004]
[1725374321955,1.76053,57996.0,57995.0,0.0004]
[1725374322757,0.64134156,57996.0,57995.0,0.0014]
[1725374322959,0.557025,57996.0,57995.0,0.0024]
[1725374323159,0.4285099,57996.0,57995.0,0.088627]
[1725374323368,0.3608,57996.0,57995.0,0.088627]
[1725374323664,0.447025,57996.0,57995.0,0.0024]
[1725374325368,0.65325,57996.0,57995.0,0.0024]
[1725374325563,0.567025,57996.0,57995.0,0.0024]
[1725374325755,0.447025,57996.0,57995.0,0.0024]
[1725374325957,0.172466,57991.0,57990.0,0.00025868]
[1725374326268,0.643266,57991.0,57990.0,0.00025868]
[1725374326456,1.760586,57991.0,57990.0,0.00025868]
[1725374326654,2.973286,57991.0,57990.0,0.00025868]
[1725374326871,0.086259,57973.0,57972.0,0.090261]
[1725374327064,0.086259,57973.0,57955.0,0.409986]
[1725374327065,0.7808,57973.0,57955.0,0.409986]
[1725374327271,0.7808,57973.0,57958.0,0.3]
[1725374327272,0.6608,57968.0,57958.0,0.3]
[1725374327759,0.3608,57968.0,57967.0,0.086268]
[1725374328164,0.3598,57968.0,57967.0,0.086268]
[1725374328963,0.3598,57968.0,57963.0,0.09480331]
[1725374329165,0.3598,57968.0,57963.0,0.00852931]
[1725374329368,0.3588,57968.0,57963.0,0.00852931]
[1725374329771,0.865067,57968.0,57962.0,0.00025868]
[1725374329960,0.865067,57968.0,57962.0,0.02772741]
[1725374330155,0.565067,57968.0,57965.0,0.08627]
[1725374330373,0.4788,57968.0,57966.0,0.08627]
[1725374330560,0.7788,57968.0,57966.0,0.08627]
[1725374330962,0.7788,57968.0,57962.0,0.08853368]
[1725374331168,0.447074,57963.0,57962.0,0.02971898]
[1725374331471,0.547074,57963.0,57962.0,0.02971898]
[1725374332171,0.547074,57963.0,57962.0,0.00225868]
[1725374332172,0.653348,57963.0,57962.0,0.00225868]
[1725374332363,1.041748,57963.0,57962.0,0.00225868]
[1725374332667,1.044748,57963.0,57962.0,0.00225868]
[1725374332864,0.958474,57963.0,57962.0,0.00225868]
[1725374333062,0.958474,57963.0,57962.0,0.00025868]
[1725374334062,1.044748,57963.0,57962.0,0.00125868]
[1725374334264,0.958474,57963.0,57962.0,0.00125868]
[1725374334462,1.044748,57963.0,57962.0,0.00125868]
[1725374334863,2.162308,57963.0,57962.0,0.00125868]
[1725374335066,2.162308,57963.0,57945.0,0.0087]
[1725374335067,0.086297,57948.0,57945.0,0.0087]
[1725374335278,0.086297,57948.0,57947.0,0.086298]
[1725374335279,0.7898,57948.0,57947.0,0.086298]
[1725374335467,0.7898,57948.0,57947.0,0.11352775]
[1725374335666,0.4898,57948.0,57947.0,0.11352775]
[1725374336166,0.4888,57948.0,57947.0,0.11352775]
[1725374336771,0.4888,57948.0,57947.0,0.11552775]
[1725374337177,0.4888,57948.0,57947.0,0.11852775]
[1725374337373,0.875097,57948.0,57947.0,0.03222975]
[1725374337872,0.961394,57948.0,57947.0,0.03222975]
[1725374338267,0.875097,57948.0,57947.0,0.03222975]
[1725374339172,0.961394,57948.0,57947.0,0.005]
[1725374339375,0.086304,57943.0,57942.0,0.08656368]
[1725374339577,0.746104,57943.0,57942.0,0.08656368]
[1725374339778,0.836104,57943.0,57942.0,0.08656368]
[1725374340169,0.835104,57943.0,57942.0,0.00025868]
[1725374340370,0.835104,57943.0,57942.0,0.02674792]
[1725374340769,0.535104,57943.0,57942.0,0.11305392]
[1725374340975,0.4508,57943.0,57942.0,0.11305392]
[1725374341281,0.837104,57943.0,57942.0,0.02674792]
[1725374341574,0.923408,57943.0,57942.0,0.00025868]
[1725374341781,2.436068,57943.0,57942.0,0.00025868]
[1725374341981,2.439068,57943.0,57942.0,0.00125868]
[1725374342476,2.26346,57943.0,57921.0,0.8704]
[1725374342673,0.3598,57925.0,57924.0,0.086332]
[1725374342882,0.386325,57929.0,57928.0,0.086326]
[1725374343477,0.385325,57929.0,57928.0,0.086326]
[1725374343881,0.385325,57929.0,57923.0,0.42473935]
[1725374343882,0.086331,57926.0,57925.0,0.086331]
[1725374344080,0.386331,57926.0,57925.0,0.086331]
[1725374344381,0.3,57926.0,57925.0,0.086331]
[1725374346079,0.086332,57924.0,57923.0,0.5381302]
[1725374346283,0.301,57926.0,57925.0,0.086331]
[1725374346879,0.391329,57926.0,57925.0,0.086331]
[1725374347680,0.086332,57924.0,57923.0,0.4517962]
[1725374347978,0.086332,57924.0,57923.0,0.1223302]
[1725374348287,0.006,57926.0,57925.0,0.086331]
[1725374349875,0.006,57926.0,57923.0,0.02731576]
[1725374349876,0.172664,57924.0,57923.0,0.02731576]
[1725374350190,0.172664,57924.0,57904.0,0.5373]
[1725374350191,0.123,57924.0,57907.0,0.3967]
[1725374350377,0.123,57924.0,57910.0,0.086353]
[1725374350378,0.3608,57911.0,57910.0,0.086353]
[1725374350583,0.3608,57911.0,57910.0,0.09495561]
[1725374351173,0.3588,57911.0,57910.0,0.09495561]
[1725374351481,0.3588,57911.0,57910.0,0.61299561]
[1725374351682,0.445152,57911.0,57908.0,0.03966999]
[1725374351888,0.386355,57909.0,57908.0,0.03966999]
[1725374352104,0.386355,57909.0,57908.0,0.12602599]
[1725374352286,0.3,57909.0,57908.0,0.13456436]
[1725374352774,0.29,57909.0,57908.0,0.13456436]
[1725374352980,0.376355,57909.0,57908.0,0.13456436]
[1725374353292,0.376355,57909.0,57908.0,0.03966999]
[1725374353584,0.366355,57909.0,57908.0,0.03966999]
[1725374353785,0.366355,57909.0,57908.0,0.012]
[1725374353786,0.486355,57909.0,57908.0,0.012]
[1725374354180,0.12,57909.0,57908.0,0.03944099]
[1725374354380,0.3588,57911.0,57908.0,0.024]
[1725374354586,0.3,57909.0,57908.0,0.024]
[1725374355384,0.386355,57909.0,57908.0,0.024]
[1725374355984,0.506355,57909.0,57908.0,0.012]
[1725374356288,0.506355,57909.0,57908.0,0.023]
[1725374356787,0.386355,57909.0,57908.0,0.023]
[1725374356989,0.386355,57909.0,57908.0,0.109356]
[1725374356990,0.001,57909.0,57908.0,0.109356]
[1725374357994,0.301,57909.0,57908.0,0.109356]
[1725374358194,0.387355,57909.0,57908.0,0.023]
[1725374358386,0.497355,57909.0,57908.0,0.023]
[1725374360684,0.58371,57909.0,57908.0,0.023]
[1725374361487,0.497355,57909.0,57908.0,0.023]
[1725374362194,0.197355,57909.0,57908.0,0.109356]
[1725374362390,0.111,57909.0,57908.0,0.109356]
[1725374362793,0.111,57909.0,57908.0,0.282068]
[1725374362794,0.001,57909.0,57908.0,0.282068]
[1725374363093,0.3588,57911.0,57910.0,0.172706]
[1725374363297,0.3588,57911.0,57910.0,0.473106]
[1725374363489,0.3588,57911.0,57910.0,0.991146]
[1725374363987,0.36105891,57916.0,57915.0,0.086346]
[1725374364190,0.36105891,57916.0,57915.0,0.086746]
[1725374365196,0.00025891,57916.0,57915.0,0.20068197]
[1725374365584,0.00025891,57916.0,57915.0,0.11433597]
[1725374365892,0.12025891,57916.0,57915.0,0.11433597]
[1725374366096,0.42025891,57916.0,57915.0,0.03198997]
[1725374366485,0.86740291,57916.0,57915.0,0.03498997]
[1725374366689,0.86740291,57916.0,57915.0,0.0074]
[1725374367397,0.56740291,57916.0,57915.0,0.0074]
[1725374367801,0.48105891,57916.0,57915.0,0.093746]
[1725374367998,0.36105891,57916.0,57915.0,0.093746]
[1725374368797,0.36105891,57916.0,57915.0,0.393746]
[1725374369000,0.00025891,57916.0,57915.0,0.393746]
[1725374369191,0.00025891,57916.0,57915.0,0.14530354]
[1725374369394,0.84740291,57916.0,57915.0,0.093746]
[1725374369595,1.12185891,57916.0,57915.0,0.093746]
[1725374369794,0.66105891,57916.0,57915.0,0.093746]
[1725374370487,0.66105891,57916.0,57915.0,0.14530354]
[1725374370690,0.66105891,57916.0,57915.0,0.093746]
[1725374371302,0.36105891,57916.0,57915.0,0.093746]
[1725374373098,0.36105891,57916.0,57915.0,0.0074]
[1725374373099,1.17174691,57916.0,57915.0,0.0074]
[1725374374914,1.19872005,57916.0,57915.0,0.0074]
[1725374375309,0.65374691,57916.0,57915.0,0.0074]
[1725374377202,0.74009091,57916.0,57915.0,0.0074]
[1725374377418,1.85809091,57916.0,57915.0,0.0074]
[1725374378516,1.25809091,57916.0,57915.0,0.0074]
[1725374378906,1.91809091,57916.0,57915.0,0.0074]
[1725374379102,2.40809091,57916.0,57915.0,0.0074]
[1725374380009,1.29009091,57916.0,57915.0,0.0074]
[1725374380213,2.40809091,57916.0,57915.0,0.0074]
[1725374381009,1.29009091,57916.0,57915.0,0.0074]
[1725374381204,0.086356,57908.0,57905.0,0.05189355]
[1725374381403,0.086356,57908.0,57905.0,0.00025891]
[1725374381404,0.980677,57906.0,57905.0,0.00025891]
[1725374381615,1.230677,57906.0,57905.0,0.00025891]
[1725374381821,2.348757,57906.0,57905.0,0.00025891]
[1725374382319,2.348757,57906.0,57905.0,0.01425891]
[1725374382515,2.262398,57906.0,57905.0,0.01425891]
[1725374382710,2.348757,57906.0,57905.0,0.01425891]
[1725374382909,2.351757,57906.0,57905.0,0.01425891]
[1725374384004,2.351757,57906.0,57893.0,0.92443464]
[1725374384005,0.086367,57901.0,57893.0,0.92443464]
[1725374384206,1.107977,57894.0,57893.0,0.088779]
[1725374384513,1.187977,57894.0,57893.0,0.088779]
[1725374385017,1.187977,57894.0,57893.0,0.0024]
[1725374385018,1.390731,57894.0,57893.0,0.0024]
[1725374385218,1.304354,57894.0,57893.0,0.0024]
[1725374385417,1.305354,57894.0,57893.0,0.0114]
[1725374385921,1.306354,57894.0,57893.0,0.0214]
[1725374386825,1.219977,57894.0,57893.0,0.0214]
[1725374389015,1.219977,57894.0,57893.0,0.107779]
[1725374390217,1.219977,57894.0,57893.0,0.0214]
[1725374390416,1.306354,57894.0,57893.0,0.0214]
[1725374390719,2.424554,57894.0,57893.0,0.0214]
[1725374390911,2.424554,57894.0,57888.0,0.00025891]
[1725374390912,0.17277,57889.0,57888.0,0.00025891]
[1725374391217,0.877185,57889.0,57888.0,0.00025891]
[1725374391622,0.977185,57889.0,57888.0,0.00025891]
[1725374392020,0.917185,57889.0,57888.0,0.00025891]
[1725374392214,1.00357,57889.0,57888.0,0.00025891]
[1725374392421,0.90357,57889.0,57888.0,0.00025891]
[1725374392720,0.90457,57889.0,57888.0,0.00025891]
[1725374392911,0.818185,57889.0,57888.0,0.00025891]
[1725374393113,0.819185,57889.0,57888.0,0.00825891]
[1725374393713,0.4928,57889.0,57888.0,0.09464491]
[1725374394222,0.3628,57889.0,57888.0,0.09464491]
[1725374394811,1e-06,57889.0,57888.0,1.62565691]
[1725374395118,0.6008,57903.0,57898.0,0.086371]
[1725374395518,0.36105891,57899.0,57898.0,0.09493626]
[1725374395715,0.36185891,57899.0,57898.0,0.09493626]
[1725374396322,0.45185891,57899.0,57895.0,0.8606]
[1725374396525,0.3008,57896.0,57895.0,0.8606]
[1725374396724,0.1208,57896.0,57895.0,0.946976]
[1725374397228,0.4208,57896.0,57888.0,0.00025891]
[1725374397413,0.3008,57889.0,57888.0,0.00025891]
[1725374397618,0.0008,57889.0,57888.0,0.00025891]
[1725374397820,0.0008,57889.0,57888.0,0.02695364]
[1725374398121,0.0008,57889.0,57888.0,0.08664391]
[1725374398524,0.0008,57889.0,57888.0,0.09664391]
[1725374399226,0.3596,57890.0,57888.0,0.09664391]
[1725374399521,0.3596,57890.0,57888.0,0.09744391]
[1725374399827,0.3596,57890.0,57889.0,0.086385]
[1725374400516,0.3596,57890.0,57888.0,0.00305891]
[1725374400517,0.7696,57890.0,57888.0,0.00305891]
[1725374400714,0.447185,57889.0,57888.0,0.00305891]
[1725374400915,0.557185,57889.0,57888.0,0.00305891]
[1725374401918,0.557185,57889.0,57888.0,0.00105891]
[1725374402434,0.64357,57889.0,57888.0,0.00105891]
[1725374402627,0.64457,57889.0,57888.0,0.00105891]
[1725374402929,0.7718,57889.0,57888.0,0.00105891]
[1725374403127,0.4718,57889.0,57888.0,0.08744491]
[1725374403333,0.3618,57889.0,57888.0,0.08744491]
[1725374403533,0.3628,57889.0,57888.0,0.08744491]
[1725374404420,0.6628,57889.0,57888.0,0.00105891]
[1725374404635,0.859185,57889.0,57888.0,0.00105891]
[1725374405528,0.94557,57889.0,57888.0,0.00105891]
[1725374409229,0.859185,57889.0,57888.0,0.00105891]
[1725374409622,0.449185,57889.0,57888.0,0.00105891]
[1725374409829,0.859185,57889.0,57888.0,0.08744491]
[1725374410126,0.94557,57889.0,57888.0,0.00105891]
[1725374410331,0.859185,57889.0,57888.0,0.00105891]
[1725374410523,0.859185,57889.0,57888.0,0.08744491]
[1725374410524,0.449185,57889.0,57888.0,0.08744491]
[1725374411455,0.3628,57889.0,57888.0,0.08744491]
[1725374411620,0.002,57889.0,57888.0,2.16247091]
[1725374411820,0.00025891,57899.0,57898.0,0.086371]
[1725374412027,0.00025891,57899.0,57898.0,0.61323212]
[1725374412333,0.00025891,57899.0,57898.0,0.14678011]
[1725374412522,0.00025891,57899.0,57898.0,0.09507212]
[1725374412922,0.00025891,57899.0,57897.0,0.87196]
[1725374413232,0.087171,57898.0,57897.0,0.4353]
[1725374413530,0.1108,57898.0,57889.0,0.44430799]
[1725374413735,0.7224,57890.0,57888.0,0.00241891]
[1725374414031,0.087185,57889.0,57888.0,0.02826471]
[1725374414232,0.136385,57889.0,57888.0,0.00105891]
[1725374414628,0.29277,57889.0,57888.0,0.00105891]
[1725374416436,0.001,57889.0,57888.0,0.08744491]
[1725374416627,0.321,57889.0,57888.0,0.08744491]
[1725374417035,0.322,57889.0,57888.0,0.08744491]
[1725374417332,0.408385,57889.0,57888.0,0.00105891]
[1725374417531,0.49477,57889.0,57888.0,0.00105891]
[1725374418132,0.408385,57889.0,57888.0,0.00105891]
[1725374418628,0.088385,57889.0,57888.0,0.00105891]
[1725374418828,0.088385,57889.0,57888.0,0.08744491]
[1725374418829,0.002,57889.0,57888.0,0.08744491]
[1725374419332,0.002,57889.0,57888.0,2.45858491]
[1725374420022,0.002,57889.0,57888.0,1.94034491]
[1725374420227,0.002,57889.0,57888.0,2.51029738]
[1725374420732,0.002,57889.0,57888.0,2.45858491]
[1725374421132,0.242,57889.0,57888.0,0.91964491]
[1725374421429,0.428385,57889.0,57888.0,0.00105891]
[1725374421635,0.41477,57889.0,57888.0,0.00105891]
[1725374421940,0.53477,57889.0,57888.0,0.00105891]
[1725374422130,0.95327,57889.0,57888.0,0.00105891]
[1725374422432,0.086404,57877.0,57874.0,0.05171247]
[1725374422643,0.3608,57875.0,57874.0,0.07848284]
[1725374422837,0.3608,57875.0,57874.0,0.16488984]
[1725374423229,0.447206,57875.0,57874.0,0.02677037]
[1725374423431,0.086409,57873.0,57872.0,0.05171247]
[1725374423728,0.3608,57875.0,57872.0,0.24]
[1725374424031,0.3618,57875.0,57873.0,0.05171636]
[1725374424731,1.4e-07,57880.0,57879.0,0.1728]
[1725374425035,0.3608,57898.0,57879.0,1.57244469]
[1725374425332,0.3608,57904.0,57898.0,0.08637]
[1725374425538,0.3608,57904.0,57902.0,0.24]
[1725374425725,0.6008,57904.0,57899.0,0.414]
[1725374425933,0.3608,57904.0,57899.0,0.800369]
[1725374426128,0.3608,57904.0,57903.0,0.3]
[1725374426327,0.3608,57904.0,57903.0,0.386364]
[1725374426832,0.3658,57904.0,57903.0,0.386364]
[1725374427636,0.3698,57904.0,57899.0,0.50037]
[1725374427837,0.456162,57904.0,57899.0,0.44062696]
[1725374428145,0.456162,57904.0,57899.0,0.02662696]
[1725374428146,0.086368,57900.0,57899.0,0.02662696]
[1725374428327,0.086368,57900.0,57896.0,0.00025914]
[1725374428328,0.756162,57904.0,57896.0,0.00025914]
[1725374428532,0.3698,57904.0,57903.0,0.3]
[1725374428733,0.3698,57904.0,57903.0,0.386364]
[1725374428937,0.009,57904.0,57903.0,0.386364]
[1725374429137,0.009,57904.0,57903.0,1.51305965]
[1725374429333,0.005,57904.0,57903.0,1.87385965]
[1725374429531,0.10156295,57927.0,57903.0,1.87385965]
[1725374429532,0.3608,57924.0,57916.0,0.086344]
[1725374429728,0.3608,57924.0,57920.0,0.3]
[1725374429931,0.3608,57924.0,57921.0,0.51792]
[1725374430144,0.3608,57931.0,57927.0,0.086328]
[1725374430332,0.447114,57937.0,57930.0,0.3]
[1725374430333,0.35001914,57937.0,57930.0,0.3]
[1725374430541,0.35001914,57937.0,57930.0,0.30883494]
[1725374431034,0.35001914,57937.0,57936.0,0.3]
[1725374431440,0.35001914,57937.0,57930.0,0.00883494]
[1725374431441,0.35001914,57937.0,57933.0,0.3]
[1725374431634,0.35001914,57937.0,57929.0,0.086325]
[1725374431635,0.0008,57934.0,57929.0,0.3]
[1725374431834,0.0008,57930.0,57929.0,0.39511327]
[1725374432036,0.0008,57934.0,57931.0,0.086322]
[1725374432436,0.0008,57934.0,57932.0,0.51784]
[1725374432945,0.0008,57934.0,57933.0,0.904159]
[1725374433242,0.0018,57934.0,57933.0,0.904159]
[1725374433442,0.0018,57934.0,57933.0,1.504159]
[1725374434144,0.0038,57934.0,57933.0,1.504159]
[1725374435043,0.0038,57934.0,57933.0,0.386319]
[1725374435838,0.0038,57934.0,57933.0,1.504159]
[1725374436039,0.0038,57934.0,57933.0,0.904159]
[1725374436550,0.086324,57930.0,57929.0,0.03541443]
[1725374436841,0.0008,57930.0,57929.0,0.3]
[1725374437045,0.0008,57930.0,57929.0,1.504205]
[1725374437351,0.0008,57930.0,57929.0,0.3]
[1725374437647,0.3616,57930.0,57929.0,1.41788]
[1725374437941,0.3616,57930.0,57929.0,1.41888]
[1725374438347,0.3616,57930.0,57929.0,0.001]
[1725374438348,0.447924,57930.0,57929.0,0.001]
[1725374438547,0.895048,57930.0,57929.0,0.001]
[1725374440048,0.17065,57929.0,57928.0,0.00025914]
[1725374440245,0.26145,57929.0,57928.0,0.00025914]
[1725374440744,0.26145,57929.0,57928.0,0.00065914]
[1725374440947,0.26045,57929.0,57928.0,0.00065914]
[1725374441144,0.26045,57929.0,57928.0,0.00165914]
[1725374441741,0.26245,57929.0,57928.0,0.00265914]
[1725374442337,1.466655,57929.0,57928.0,0.00265914]
[1725374442541,0.948775,57929.0,57928.0,1.4e-07]
[1725374442743,0.348775,57929.0,57928.0,1.4e-07]
[1725374442946,0.26245,57929.0,57928.0,1.4e-07]
[1725374444964,0.17245,57929.0,57928.0,1.4e-07]
[1725374445350,0.086125,57929.0,57928.0,1.4e-07]
[1725374445941,0.0028,57929.0,57928.0,1.4e-07]
[1725374446147,0.0028,57929.0,57928.0,0.08632614]
[1725374446441,0.089125,57929.0,57928.0,0.08632614]
[1725374446749,0.17545,57929.0,57928.0,1.4e-07]
[1725374447342,0.29545,57929.0,57928.0,1.4e-07]
[1725374447541,0.29545,57929.0,57926.0,0.02698296]
[1725374447542,0.163656,57927.0,57926.0,0.02698296]
[1725374447854,0.086332,57924.0,57923.0,0.0002589]
[1725374448354,0.173064,57924.0,57923.0,0.0272872]
[1725374448653,0.173064,57924.0,57923.0,0.0002589]
[1725374449457,0.086732,57924.0,57923.0,0.0002589]
[1725374449849,0.173064,57924.0,57923.0,0.0002589]
[1725374450043,0.388396,57924.0,57923.0,0.0002589]
[1725374450248,0.498396,57924.0,57923.0,0.0002589]
[1725374450744,0.498396,57924.0,57919.0,0.87168]
[1725374450745,0.172676,57920.0,57919.0,9e-07]
[1725374450954,1.030214,57920.0,57919.0,9e-07]
[1725374451150,1.030214,57920.0,57911.0,0.02778301]
[1725374451151,0.08635,57912.0,57911.0,0.02778301]
[1725374451354,0.086356,57908.0,57907.0,0.00844846]
[1725374451555,0.085359,57906.0,57905.0,0.3237]
[1725374451754,0.085759,57906.0,57905.0,0.410061]
[1725374451962,0.085759,57906.0,57905.0,0.44632477]
[1725374452345,0.085359,57906.0,57905.0,0.44632477]
[1725374452862,0.084359,57906.0,57905.0,0.44632477]
[1725374453648,0.088359,57906.0,57905.0,0.44632477]
[1725374454463,0.005,57906.0,57905.0,0.44632477]
[1725374455052,0.011,57906.0,57905.0,0.44732477]
[1725374457061,0.011,57906.0,57905.0,1.56540477]
[1725374457264,0.011,57906.0,57905.0,2.11210477]
[1725374457851,0.011,57906.0,57905.0,2.19846577]
[1725374458053,0.0004,57908.0,57905.0,2.19846577]
[1725374458054,0.0004,57908.0,57907.0,0.259074]
[1725374458259,0.3608,57923.0,57922.0,0.086335]
[1725374458460,0.3608,57923.0,57922.0,0.386735]
[1725374458648,0.447134,57923.0,57922.0,0.386335]
[1725374458855,0.3608,57923.0,57922.0,0.386335]
[1725374460157,0.3608,57923.0,57922.0,0.986335]
[1725374460358,0.0002589,57928.0,57922.0,2.31605533]
[1725374460655,0.3608,57943.0,57927.0,0.386328]
[1725374460861,0.3608,57948.0,57945.0,0.0863]
[1725374461070,0.3608,57948.0,57947.0,0.3004]
[1725374461364,0.086293,57951.0,57947.0,0.3]
[1725374461555,0.3608,57953.0,57950.0,0.0004]
[1725374461861,1.0544,57960.0,57952.0,0.3]
[1725374461862,0.0865419,57957.0,57952.0,0.3]
[1725374462050,0.3608,57955.0,57952.0,0.3]
[1725374462851,0.3608,57955.0,57952.0,0.32655712]
[1725374463054,0.0002589,57957.0,57953.0,0.51764]
[1725374463352,0.0002589,57957.0,57956.0,0.386685]
[1725374463555,0.44706,57973.0,57956.0,0.81804]
[1725374463754,0.086261,57972.0,57965.0,0.3]
[1725374463950,0.3608,57973.0,57965.0,0.3]
[1725374463951,0.086263,57971.0,57965.0,0.3004]
[1725374464166,0.086263,57971.0,57965.0,1.41796]